[Event "DFMM-LV 2023"]
[Site "Braunfels"]
[Date "2023.06.09"]
[Round "3.1"]
[White "Rogule, Laura"]
[Black "Agrest, Inna"]
[Result "1/2-1/2"]
[Annotator "TA"]
[ECO "E68"]
[WhiteElo "2218"]
[BlackElo "2287"]
[PlyCount "51"]
[EventDate "2023.06.09"]
[EventType "team-tourn"]
[EventCountry "GER"]
[SourceTitle "playchess.com"]
[Source "ChessBase"]
[SourceQuality "1"]
[TimeControl "40/5400+30:1800+30"]

{[%evp 17,51,20,43,48,67,51,68,46,60,0,10,-8,14,0,31,0,0,0,0,0,0,-8,0,9,3,-12,-14,-31,6,8,1,8,0,-70,-62,-120]} 1. c4 {[%emt 0:00:03]} Nf6 {[%emt 0:00:14]} 2. d4 {[%emt 0:01:39]} g6 {[%emt 0:00:08]} 3. Nf3 {[%emt 0:00:41]} Bg7 {[%emt 0:00:10]} 4. g3 {[%emt 0:00:15]} O-O {[%emt 0:00:38]} 5. Bg2 {[%emt 0:00:05]} d6 {[%emt 0:00:58]} 6. Nc3 {[%emt 0:02:11]} Nbd7 {[%emt 0:01:14]} 7. O-O {[%emt 0:02:40]} a6 {[%emt 0:00:55]} 8. e4 {[%emt 0:02:43]} e5 $1 {[%emt 0:00:29] 8...e5 scores better than 8...c5.} 9. Re1 {[%emt 0:03:04]} Rb8 {[%emt 0:03:45]} 10. d5 {[%emt 0:09:03] E68: King's Indian: Fianchetto: 6...Nbd7 7 0-0 e5 8 e4.} b5 {[%emt 0:03:53]} 11. cxb5 {[%emt 0:07:48]} axb5 {[%emt 0:00:04]} 12. b4 {[%emt 0:02:06] White is more active. White is slightly better.} Nb6 $1 {[%emt 0:01:34] [#]} 13. Bg5 $146 {[%emt 0:06:53]} (13. Nxb5 $14 Nbxd5 14. Na7 Nxb4 15. a3) ({Predecessor:} 13. Nd2 Bd7 14. Bf1 Qe7 15. Nb3 Nc4 16. a4 bxa4 17. Bxc4 axb3 18. Qxb3 Ne8 19. Ra7 {1-0 Tregubov,P (2629)-Mamedov,R (2617) EU-ch 9th Plovdiv 2008 (7)}) 13... Bd7 {[%emt 0:03:46]} 14. Qe2 {[%emt 0:04:18]} Qc8 {[%emt 0:04:51]} 15. Rec1 {[%emt 0:02:55][%cal Be1c1,Bc1c3,Bc3c2][%mdl 32]} ({Don't play} 15. Nxb5 Nxe4 16. Qxe4 Bxb5 $17) 15... h5 {[%emt 0:14:55]} 16. Nd2 {[%emt 0:05:48]} ({Of course not} 16. Nxb5 Bxb5 17. Qxb5 Nxe4 $11) 16... Nh7 {[%emt 0:17:07]} 17. Be3 {[%emt 0:00:40]} Qe8 {[%emt 0:03:09]} 18. Bxb6 {[%emt 0:16:50]} Rxb6 {[%emt 0:00:32]} 19. Nd1 {[%emt 0:01:29]} Rb7 {[%emt 0:07:19]} 20. Rc3 {[%emt 0:04:36]} f5 {[%emt 0:01:13]} 21. exf5 {[%emt 0:06:48]} gxf5 {[%emt 0:01:09] Strongly threatening ...e4.} 22. Rac1 {[%emt 0:00:20]} Qd8 {[%emt 0:06:34]} 23. Qxh5 {[%emt 0:00:19]} e4 {[%emt 0:00:17]} 24. R3c2 $1 {[%emt 0:02:34]} Nf6 {[%emt 0:01:27][%csl LRd5,LRh5]} 25. Qg6 {[%emt 0:02:28]} (25. Qg5 $11) 25... Ng4 $1 $15 {[%emt 0:09:11][%mdl 1024] Black has compensation.} 26. Ne3 {[%emt 0:01:40] Weighted Error Value: White=0.15 (very precise) /Black=0.08 (flawless)} (26. Nb3 $15) 1/2-1/2

[Event "DFMM-LV 2023"]
[Site "Braunfels"]
[Date "2023.06.09"]
[Round "3.2"]
[White "Voicu-Jagodzinsky, Carmen"]
[Black "Otikova, Elina"]
[Result "1-0"]
[Annotator "TA"]
[ECO "C47"]
[WhiteElo "2297"]
[BlackElo "2047"]
[PlyCount "95"]
[EventDate "2023.06.09"]
[EventType "team-tourn"]
[EventCountry "GER"]
[SourceTitle "playchess.com"]
[Source "ChessBase"]
[SourceQuality "1"]
[TimeControl "40/5400+30:1800+30"]

{[%evp 20,95,61,34,32,31,53,18,22,24,25,1,32,7,21,7,59,42,35,24,24,20,25,0,64,7,2,0,124,14,31,33,38,31,107,98,103,89,90,91,96,96,93,101,143,144,135,134,121,31,31,31,48,52,274,274,383,383,520,156,472,385,5544,3093,29966,29969,29969,29970,29970,29971,29971,29966,29972,29973,29975,29973,29973,29970]} 1. e4 {[%emt 0:00:04][%cal Be2e4,Be4d5,Bd5d6][%mdl 32]} e5 {[%emt 0:00:08]} 2. Nf3 {[%emt 0:00:07]} Nc6 {[%emt 0:00:15]} 3. Nc3 {[%emt 0:00:27]} Nf6 {[%emt 0:00:34]} 4. d4 {[%emt 0:00:36]} exd4 {[%emt 0:01:02]} 5. Nd5 {[%emt 0:00:33]} Nxd5 {[%emt 0:04:43]} 6. exd5 {[%emt 0:00:11]} Bb4+ {[%emt 0:01:59]} 7. Bd2 {[%emt 0:00:10]} Qe7+ {[%emt 0:06:28]} 8. Qe2 {[%emt 0:00:25]} Bxd2+ {[%emt 0:04:00]} 9. Kxd2 {[%emt 0:00:10]} Qxe2+ {[%emt 0:01:49]} 10. Bxe2 {[%emt 0:00:05]} Ne7 {[%emt 0:01:54]} 11. d6 {[%emt 0:03:19] White is more active.} ({Don't play} 11. Nxd4 Nxd5 12. Rhe1 Nf4 $11) 11... Nc6 {[%emt 0:05:13] C47: Scotch Four Knights and Four Knights with 4 g3.} 12. dxc7 {[%emt 0:12:31]} (12. Rhd1 {simplifies} cxd6 13. Ke1 b6 14. Nxd4 Nxd4 15. Rxd4 Bb7 16. Kf1) 12... d5 {[%emt 0:00:11]} 13. Rhe1 {[%emt 0:00:59] Strongly threatening Bc4+.} (13. Rhd1 {simplifies} Kd7 14. Ke1 Kxc7 15. Nxd4 a6 16. Kf1) 13... Kd7 {[%emt 0:12:58] The position is equal.} 14. Bb5 {[%emt 0:09:22]} (14. Rad1 {simplifies} Kxc7 15. Kc1 Bg4 16. Nxd4 Bxe2 17. Nxe2 Rad8 18. Nf4) 14... Kd6 {[%emt 0:00:23] [#] Prevents Re5.} (14... Rf8 {simplifies} 15. Bxc6+ bxc6 16. Nxd4 Kxc7 17. b4 Bd7) 15. h3 $146 {[%emt 0:12:32]} ({Predecessor:} 15. Bxc6 bxc6 16. Nxd4 c5 17. Nb5+ Kc6 18. c4 dxc4 19. Na3 Be6 20. Kc3 Kxc7 21. Nxc4 {½-½ Bednar,J (2266)-Kekely,L (2071) SVK-chT2C 1516 2015 (7.3)}) 15... Be6 {[%emt 0:04:06]} 16. Re2 {[%emt 0:02:55]} Rac8 {[%emt 0:05:49]} 17. Rae1 {[%emt 0:01:11]} (17. Bxc6 {simplifies} bxc6 18. Nxd4 Rxc7 19. c4) 17... g6 {[%emt 0:10:28]} (17... Rxc7 $11 18. Bxc6 d3) 18. Bxc6 {[%emt 0:14:33]} (18. Ng5 {keeps more tension.} d3 19. Bxd3 Nd4 20. Rxe6+ fxe6 21. Nf7+) 18... bxc6 {[%emt 0:00:26] Black is weak on the dark squares} 19. Ng5 {[%emt 0:03:43][%cal Rg5e6]} Rhe8 {[%emt 0:04:39]} 20. Nxh7 {[%emt 0:00:42]} Rxc7 {[%emt 0:00:16]} 21. Ng5 {[%emt 0:01:34]} Rce7 {[%emt 0:01:53]} (21... Rb7 $11) 22. f4 {[%emt 0:04:43]} (22. b4 $14) 22... c5 $11 {[%emt 0:03:40]} 23. g4 {[%emt 0:05:05]} c4 {[%emt 0:03:30]} (23... Bd7 $11) 24. Nf3 {[%emt 0:03:08]} (24. b3 $1 $16) 24... c3+ {[%emt 0:04:31]} 25. bxc3 {[%emt 0:00:50]} dxc3+ {[%emt 0:00:07]} 26. Kxc3 {[%emt 0:00:28]} Rh8 {[%emt 0:00:53]} (26... Rc7+ $14 27. Kd2 Rec8) 27. Ng5 {[%emt 0:02:15]} Rc7+ {[%emt 0:00:44]} 28. Kd2 {[%emt 0:00:53][%cal Rg5e6]} Bc8 {[%emt 0:03:50]} 29. Re8 {[%emt 0:02:15] Dodges f6} Rxe8 {[%emt 0:02:05]} 30. Rxe8 $16 {[%emt 0:00:01][%mdl 4096] Endgame KRB-KRN} f5 {[%emt 0:00:23]} 31. Rg8 {[%emt 0:03:17]} fxg4 {[%emt 0:00:05]} 32. Rxg6+ {[%emt 0:00:21]} Kc5 {[%emt 0:00:16]} 33. hxg4 {[%emt 0:00:54]} Bxg4 {[%emt 0:00:49] [#]} 34. Ne6+ {[%emt 0:00:34]} ({White should try} 34. Ne4+ $1 $16 Kd4 35. Ng3) 34... Bxe6 $14 {[%emt 0:00:07]} 35. Rxe6 {[%emt 0:00:01] KR-KR} Rf7 {[%emt 0:04:23]} 36. Ke3 {[%emt 0:00:21] Black must now prevent Kf3.} Kc4 $2 {[%emt 0:03:49]} ({Black should play} 36... a5 $14) 37. Re5 $18 {[%emt 0:03:34]} a5 {[%emt 0:04:35] [#]} 38. f5 $1 {[%emt 0:00:37] Kf4 would be deadly.} a4 {[%emt 0:00:47]} 39. a3 $2 {[%emt 0:05:02]} (39. Kf4 $18 {and the rest is easy.}) 39... Rf6 $2 {[%emt 0:03:54] Black cannot hold the game after this.} (39... d4+ $16 {is a better chance.} 40. Ke4 Kc3) 40. Kf4 {[%emt 0:01:11]} Rb6 $2 {[%emt 0:01:46]} (40... Rf8 41. Re3 d4) 41. Re2 {[%emt 0:35:29] Intending Kg5 and mate.} Kc3 {[%emt 0:02:30]} 42. Ke5 {[%emt 0:00:00] White mates.} d4 {[%emt 0:00:53]} 43. Rf2 {[%emt 0:00:00]} Rb5+ {[%emt 0:01:44]} 44. Ke4 {[%emt 0:00:00]} Rb8 {[%emt 0:01:53]} 45. f6 {[%emt 0:00:00]} Re8+ {[%emt 0:00:11]} 46. Kd5 {[%emt 0:00:00]} Rd8+ {[%emt 0:00:13]} 47. Kc5 {[%emt 0:00:00]} Kb2 {[%emt 0:04:51]} 48. Kb4 {[%emt 0:00:00] Weighted Error Value: White=0.26 (precise) /Black=0.55} 1-0

[Event "DFMM-LV 2023"]
[Site "Braunfels"]
[Date "2023.06.09"]
[Round "3.3"]
[White "Ter-Avetisjana, Agnesa Stepania"]
[Black "Zozulia, Anna"]
[Result "1/2-1/2"]
[Annotator "TA"]
[ECO "B51"]
[WhiteElo "1988"]
[BlackElo "2236"]
[PlyCount "35"]
[EventDate "2023.06.09"]
[EventType "team-tourn"]
[EventCountry "GER"]
[SourceTitle "playchess.com"]
[Source "ChessBase"]
[SourceQuality "1"]
[TimeControl "40/5400+30:1800+30"]

{[%evp 16,35,18,8,5,2,0,-8,-5,-6,-10,-24,17,14,17,17,23,22,26,24,25,4]} 1. e4 {[%emt 0:00:02]} c5 {[%emt 0:01:20]} 2. Nf3 {[%emt 0:00:20]} Nc6 {[%emt 0:00:05]} 3. Bb5 {[%emt 0:00:54]} d6 {[%emt 0:01:18]} 4. c3 {[%emt 0:00:28]} Bd7 {[%emt 0:15:32]} 5. O-O {[%emt 0:00:42]} Nf6 {[%emt 0:00:52]} 6. Re1 {[%emt 0:00:10]} a6 {[%emt 0:01:14]} 7. Ba4 {[%emt 0:00:52]} b5 {[%emt 0:00:36]} 8. Bc2 {[%emt 0:00:08]} e5 {[%emt 0:01:02] has lost popularity (8...Bg4).} 9. d4 {[%emt 0:00:12]} cxd4 {[%emt 0:03:16] B51: Sicilian: Moscow Variation (3 Bb5+) without 3...Bd7.} 10. cxd4 {[%emt 0:00:12]} Bg4 {[%emt 0:00:38]} 11. Be3 {[%emt 0:03:44]} exd4 {[%emt 0:27:11] The position is equal.} 12. Bxd4 {[%emt 0:00:37]} Bxf3 {[%emt 0:08:28]} 13. gxf3 {[%emt 0:00:01]} Nxd4 {[%emt 0:01:37]} 14. Qxd4 {[%emt 0:00:01]} Be7 {[%emt 0:01:19]} 15. Nc3 {[%emt 0:01:47]} O-O {[%emt 0:00:16]} 16. Rad1 {[%emt 0:00:05] Threatens to win with e5.} Qc7 {[%emt 0:05:54] [#]} 17. Bb3 $146 {[%emt 0:00:28]} ({Predecessor:} 17. Rd2 Rac8 18. Qd3 g6 19. a3 Rfe8 20. Bb3 Nd7 21. Nd5 Qd8 22. f4 Bf8 23. Qg3 {1-0 Calder,H (2037)-Ramos Verdu,J (2047) BCCA-ESP email 2006}) 17... Qa7 {[%emt 0:03:41]} 18. Nd5 {[%emt 0:02:53] An uneventful encounter.   Weighted Error Value: White=0.03 (flawless) /Black=0.05 (flawless)} 1/2-1/2

[Event "DFMM-LV 2023"]
[Site "Braunfels"]
[Date "2023.06.09"]
[Round "3.5"]
[White "Safonova, Valeria"]
[Black "Hess, Olena"]
[Result "0-1"]
[Annotator "TA"]
[ECO "C41"]
[WhiteElo "1753"]
[BlackElo "2078"]
[PlyCount "76"]
[EventDate "2023.06.09"]
[EventType "team-tourn"]
[EventCountry "GER"]
[SourceTitle "playchess.com"]
[Source "ChessBase"]
[SourceQuality "1"]
[TimeControl "40/5400+30:1800+30"]

{[%evp 11,76,19,47,49,29,0,0,11,7,0,6,4,42,0,2,5,29,-296,-301,-327,-328,-287,-260,-271,-259,-256,-263,-274,-296,-354,-352,-377,-370,-373,-371,-360,-368,-362,-352,-355,-329,-380,-324,-415,-401,-473,-429,-429,-428,-472,-465,-566,-569,-565,-560,-591,-535,-542,-535,-534,-481,-566,-568,-532,-530,-589,-589]} 1. e4 {[%emt 0:00:01]} d6 {[%emt 0:00:07]} 2. d4 {[%emt 0:00:04]} Nf6 {[%emt 0:00:14]} 3. Nc3 {[%emt 0:00:11]} e5 {[%emt 0:00:22]} 4. Nge2 {[%emt 0:00:25]} exd4 {[%emt 0:02:49]} 5. Nxd4 {[%emt 0:00:09]} Be7 {[%emt 0:05:16]} 6. g3 {[%emt 0:02:45]} d5 {[%emt 0:11:27]} 7. exd5 {[%emt 0:20:02] C41: Philidor Defence.} Nxd5 {[%emt 0:00:14]} 8. Nce2 {[%emt 0:17:28]} O-O {[%emt 0:05:28][%cal Bh8f8,Bf8e8,Be8e2][%mdl 32]} 9. Bg2 {[%emt 0:01:13] The position is equal.} c6 {[%emt 0:10:04][%cal Bc7c6,Bc6c5][%mdl 32]} 10. h3 {[%emt 0:02:45]} Na6 {[%emt 0:04:23]} 11. O-O {[%emt 0:00:54]} Nac7 {[%emt 0:00:14]} 12. c3 {[%emt 0:01:11]} (12. c4 $5 {[%cal Rc4d5]} Nb6 13. Qc2 $14) 12... Bf6 {[%emt 0:05:15] [#]} 13. Bd2 $146 {[%emt 0:09:05]} ({Predecessor:} 13. Qb3 Re8 14. Nf4 Nxf4 15. Bxf4 Bxd4 16. cxd4 Nd5 17. Bd2 Rb8 18. Rfe1 Be6 19. Qa3 {½-½ Schrepp,M (2234)-Beer,M (2105) Verbandsliga Nordbaden 1920 2019 (6.3)}) 13... Re8 {[%emt 0:00:25]} 14. Qc2 $2 {[%emt 0:02:50][%mdl 8192] This move loses the game for White.} (14. Re1 $11 {and White is okay.}) 14... c5 $19 {[%emt 0:02:31][%mdl 64] [#] Deflection} 15. Nb3 {[%emt 0:22:40]} Rxe2 {[%emt 0:00:36]} 16. Qd3 {[%emt 0:00:04]} Re8 {[%emt 0:03:28][%cal Od5c3]} 17. Nxc5 {[%emt 0:00:17]} Nb6 {[%emt 0:05:45]} 18. Qxd8 {[%emt 0:02:38]} Rxd8 {[%emt 0:00:21]} ({Weaker is} 18... Bxd8 19. Rad1 $17) 19. Bf4 {[%emt 0:01:08]} Ncd5 {[%emt 0:02:59]} 20. Rad1 {[%emt 0:02:15]} Nxf4 {[%emt 0:02:21]} 21. Rxd8+ {[%emt 0:00:22]} Bxd8 {[%emt 0:00:03]} 22. gxf4 {[%emt 0:00:06]} Rb8 {[%emt 0:04:41]} 23. Rd1 {[%emt 0:01:59][%cal Rd1d8] [#]} Be7 {[%emt 0:00:47]} 24. Ne4 {[%emt 0:01:07]} Be6 {[%emt 0:00:35]} 25. b3 {[%emt 0:00:46]} Bd5 {[%emt 0:04:47]} 26. Re1 {[%emt 0:02:53]} Kf8 {[%emt 0:01:39]} 27. Kf1 {[%emt 0:01:27]} f5 {[%emt 0:01:25]} 28. Ng3 {[%emt 0:00:35]} Bxg2+ {[%emt 0:00:22] Black is clearly winning.} 29. Kxg2 {[%emt 0:00:01]} g6 {[%emt 0:00:19]} 30. c4 {[%emt 0:01:04]} Rd8 {[%emt 0:03:35]} 31. Ne2 {[%emt 0:01:28]} Bb4 {[%emt 0:01:39]} 32. Ra1 {[%emt 0:02:15]} Rd2 {[%emt 0:00:16]} 33. Kf3 {[%emt 0:00:12]} Rd3+ {[%emt 0:02:04]} 34. Kg2 {[%emt 0:00:13]} Be7 {[%emt 0:02:16]} 35. Ng1 {[%emt 0:01:46]} Bf6 {[%emt 0:06:19]} 36. Rb1 {[%emt 0:00:10]} Rd2 {[%emt 0:00:41]} 37. Nf3 {[%emt 0:01:05]} Rxa2 {[%emt 0:04:00]} 38. Rd1 {[%emt 0:00:05]} Ke7 {[%emt 0:01:15] Weighted Error Value: White=0.40/Black=0.15 (very precise)} 0-1

[Event "DFMM-LV 2023"]
[Site "Braunfels"]
[Date "2023.06.09"]
[Round "3.6"]
[White "Trunz, Elena"]
[Black "Hartung, Katja"]
[Result "1-0"]
[Annotator "TA"]
[ECO "C77"]
[WhiteElo "2122"]
[BlackElo "1944"]
[PlyCount "55"]
[EventDate "2023.06.09"]
[EventType "team-tourn"]
[EventCountry "GER"]
[SourceTitle "playchess.com"]
[Source "ChessBase"]
[SourceQuality "1"]
[TimeControl "40/5400+30:1800+30"]

{[%evp 16,55,27,13,41,16,112,118,210,201,265,45,37,33,30,40,79,67,72,74,77,60,59,62,58,60,64,53,64,56,76,64,79,83,75,70,106,78,362,365,431,433]} 1. e4 {[%emt 0:00:02]} e5 {[%emt 0:00:09]} 2. Nf3 {[%emt 0:00:11]} Nc6 {[%emt 0:00:08]} 3. Bb5 {[%emt 0:00:06]} a6 {[%emt 0:00:14]} 4. Ba4 {[%emt 0:00:03]} b5 {[%emt 0:01:20]} 5. Bb3 {[%emt 0:00:03]} Nf6 {[%emt 0:00:16]} 6. d3 {[%emt 0:03:33]} Be7 {[%emt 0:03:41]} 7. O-O {[%emt 0:00:51]} O-O {[%emt 0:01:16]} 8. c3 {[%emt 0:00:35]} d5 {[%emt 0:03:52]} 9. Nbd2 $1 {[%emt 0:02:05][%mdl 4] is recently more successful than 9.exd5.} Bg4 {[%emt 0:03:58] C77: Ruy Lopez: 3...a6 4 Ba4 Nf6, unusual lines.} 10. Qe2 {[%emt 0:07:39] [#]} (10. h3 {simplifies} Bxf3 11. Nxf3 dxe4 12. dxe4 Qxd1 13. Rxd1 Rad8 14. Re1) 10... Bc5 $146 {[%emt 0:10:56]} (10... Be6 $11) ({Predecessor:} 10... dxe4 11. dxe4 Nh5 12. Rd1 Bc5 13. Nf1 Qf6 14. Bd5 Rad8 15. Ne3 Nf4 16. Qf1 Nh3+ 17. gxh3 Bxf3 {0-1 Al Ali,A (1478)-Padmini,R (2370) Sharjah Cup Final (Women) 11th rapid 2021 (1)}) 11. exd5 $1 $16 {[%emt 0:09:14]} Nxd5 {[%emt 0:01:54]} (11... Na5 $16) 12. Qe4 $18 {[%emt 0:01:18]} Be6 {[%emt 0:04:25]} 13. Nxe5 $2 {[%emt 0:02:58]} ({White has to play} 13. Ng5 $1 $18 {[%csl Gg5][%cal Re4h7]} g6 14. d4) 13... Nxe5 $14 {[%emt 0:02:57]} 14. Qxe5 {[%emt 0:00:07]} Bd6 {[%emt 0:04:08]} 15. Qe4 {[%emt 0:03:10]} Re8 {[%emt 0:01:59][%cal Od5c3] [#]} 16. Qf3 $1 {[%emt 0:12:10]} Nf6 {[%emt 0:19:35]} (16... Qh4 $2 17. g3 Qg5 18. h4 $18) 17. Bxe6 {[%emt 0:03:01]} Rxe6 {[%emt 0:00:23]} 18. Nb3 {[%emt 0:04:28]} c5 {[%emt 0:05:57] Inhibits Nd4.} 19. Bg5 {[%emt 0:07:30]} h6 {[%emt 0:01:20]} 20. Bh4 {[%emt 0:04:45]} Qe8 {[%emt 0:02:47]} 21. Bg3 {[%emt 0:09:07]} Bxg3 {[%emt 0:02:30]} 22. hxg3 {[%emt 0:00:56]} Rc8 {[%emt 0:00:50]} 23. d4 {[%emt 0:03:23]} Ne4 {[%emt 0:03:38]} 24. dxc5 {[%emt 0:01:42]} Nxc5 {[%emt 0:00:27]} 25. Nd4 {[%emt 0:03:27][%cal Bb3d4,Bd4f5,Bf5d6][%mdl 32]} Re4 {[%emt 0:03:41]} 26. Rad1 {[%emt 0:02:25]} Na4 $2 {[%emt 0:00:22][%mdl 8192] [#]} (26... g6 $16) 27. Nf5 $1 $18 {[%emt 0:01:01] aiming for Nd6.} Nxb2 {[%emt 0:04:19]} 28. Nd6 $1 {[%emt 0:00:47][%csl LRc8,LRe4,LRe8] Weighted Error Value: White=0.13 (very precise) /Black=0.54} 1-0

[Event "DFMM-LV 2023"]
[Site "Braunfels"]
[Date "2023.06.09"]
[Round "3.7"]
[White "Eue, Vicky"]
[Black "Sereda, Yaroslava"]
[Result "0-1"]
[Annotator "TA"]
[ECO "B33"]
[WhiteElo "1682"]
[BlackElo "1913"]
[PlyCount "64"]
[EventDate "2023.06.09"]
[EventType "team-tourn"]
[EventCountry "GER"]
[SourceTitle "playchess.com"]
[Source "ChessBase"]
[SourceQuality "1"]
[TimeControl "40/5400+30:1800+30"]

{[%evp 16,64,-5,-33,-39,-52,-50,-72,-71,-60,-61,-63,-62,-92,-92,-89,-87,-88,-81,-125,-87,-100,-7,-6,0,0,0,-170,-171,-172,-172,-175,-166,-173,-155,-167,-175,-259,-277,-429,-366,-433,-238,-460,-441,-454,-447,-437,-429,-397,-404]} 1. e4 {[%emt 0:00:04]} c5 {[%emt 0:00:06]} 2. Nf3 {[%emt 0:00:06]} Nc6 {[%emt 0:00:07]} 3. d4 {[%emt 0:00:13]} cxd4 {[%emt 0:00:09]} 4. Nxd4 {[%emt 0:00:04]} e5 {[%emt 0:00:46]} 5. Nf3 {[%emt 0:01:10]} Nf6 {[%emt 0:01:05]} 6. Nc3 {[%emt 0:01:03]} Bb4 {[%emt 0:01:12]} 7. Bd3 {[%emt 0:01:26]} d5 {[%emt 0:26:44]} 8. exd5 {[%emt 0:00:23]} Nxd5 {[%emt 0:04:54]} 9. Bd2 {[%emt 0:00:35]} O-O {[%emt 0:11:36] ...Bxc3 would be deadly. B33: Sicilian: Pelikan and Sveshnikov Variations.} 10. Nxd5 {[%emt 0:00:44]} Qxd5 {[%emt 0:00:15]} 11. Bxb4 {[%emt 0:00:15]} Nxb4 {[%emt 0:00:30] Black is better.} 12. a3 {[%emt 0:08:30]} Nxd3+ {[%emt 0:07:02]} 13. Qxd3 {[%emt 0:01:53] [#]} Qc6 $146 {[%emt 0:02:57]} (13... Qxd3 {simplifies} 14. cxd3 Bg4 15. Rc1 Rad8) ({Predecessor:} 13... Qxd3 14. cxd3 Bf5 15. Ke2 Rad8 16. Rhd1 Rd7 17. Rac1 Rfd8 18. Rc3 f6 19. Ke3 Kf7 {0-1 Shlyapkin,A (1783)-Gunduz,U (2230) Sveshnikov Memorial op blitz 2021 (5)}) 14. Ng5 {[%emt 0:14:16][%csl Gg5][%cal Rd3h7]} e4 {[%emt 0:07:15]} 15. Nxe4 {[%emt 0:22:58]} Bf5 $1 {[%emt 0:05:10]} 16. f3 {[%emt 0:02:37]} Rad8 {[%emt 0:01:11][%mdl 1024] Black has strong compensation.} 17. Qe2 {[%emt 0:02:37]} Qb6 $36 {[%emt 0:04:28][%cal Of8e8][%mdl 2048] White is under strong pressure.} 18. c3 {[%emt 0:02:32] [#]} Rfe8 {[%emt 0:06:37] Black is much more active. The white rooks are badly placed.} (18... Be6 $1 $17 {Hoping for ...f5.} 19. g4 Bb3) 19. Rd1 $1 $11 {[%emt 0:04:54]} Bg6 {[%emt 0:06:22] Threatens to win with ...f5.} 20. Rxd8 {[%emt 0:00:27]} Qxd8 {[%emt 0:00:24]} 21. Qd2 $2 {[%emt 0:19:43] [#]} (21. g4 $1 $11) 21... Qb6 $1 $19 {[%emt 0:03:55][%cal Of7f5] ...f5! is the strong threat.} 22. g4 {[%emt 0:04:35]} Bxe4 {[%emt 0:02:16]} 23. fxe4 {[%emt 0:00:08]} Rxe4+ {[%emt 0:00:09][%mdl 4096] Endgame KQR-KQR} 24. Kd1 {[%emt 0:00:35]} Rxg4 {[%emt 0:03:03]} 25. Re1 {[%emt 0:00:34][%cal Re1e8]} h6 {[%emt 0:01:25]} 26. Qe2 {[%emt 0:05:30]} (26. Re2 $142) 26... Qg6 {[%emt 0:00:45]} 27. Qe8+ {[%emt 0:03:59]} Kh7 {[%emt 0:00:05] White must now prevent ...Qb1+.} 28. Kc1 {[%emt 0:00:20] Repels Qb1+} Rg1 {[%emt 0:02:15]} (28... Rg2 $142 {[%csl Gg2][%cal Rg6c2]} 29. Re2 Rxh2 {[%mdl 64] Decoy} 30. Rxh2 Qg1+ 31. Kc2 Qxh2+ 32. Kb3 Qc7) 29. Rxg1 $2 {[%emt 0:01:55]} (29. h3 {is a better defense.}) 29... Qxg1+ {[%emt 0:00:06]} 30. Kc2 {[%emt 0:00:11]} Qxh2+ {[%emt 0:00:08]} 31. Kb3 {[%emt 0:00:03]} Qc7 {[%emt 0:00:33]} 32. Qe4+ {[%emt 0:00:18]} g6 {[%emt 0:00:11] Weighted Error Value: White=0.43/Black=0.20 (precise)} 0-1

[Event "DFMM-LV 2023"]
[Site "Braunfels"]
[Date "2023.06.09"]
[Round "3.8"]
[White "Moeller, Lisa-Marie"]
[Black "Kuemmel, Tina"]
[Result "1-0"]
[Annotator "NA RC COMBH"]
[ECO "C10"]
[WhiteElo "1897"]
[BlackElo "1497"]
[PlyCount "43"]
[EventDate "2023.06.09"]
[EventType "team-tourn"]
[EventCountry "GER"]
[SourceTitle "playchess.com"]
[Source "ChessBase"]
[SourceQuality "1"]
[TimeControl "40/5400+30:1800+30"]

1. e4 {[%emt 0:00:01]} e6 {[%emt 0:00:12]} 2. d4 {[%emt 0:00:05]} d5 {[%emt 0:00:03]} 3. Nd2 {[%emt 0:00:05]} dxe4 {[%emt 0:00:27]} 4. Nxe4 {[%emt 0:00:07]} Nd7 {[%emt 0:00:04]} 5. Nf3 {[%emt 0:01:02]} Ngf6 {[%emt 0:00:22]} 6. Bd3 {[%emt 0:00:57]} Be7 {[%emt 0:01:27]} 7. O-O {[%emt 0:00:54]} Nxe4 {[%emt 0:02:59]} 8. Bxe4 {[%emt 0:00:08]} Nf6 {[%emt 0:00:04]} 9. Bd3 {[%emt 0:01:11]} c5 {[%emt 0:09:27]} 10. c3 {[%emt 0:07:09]} O-O {[%emt 0:04:23]} 11. Re1 {[%emt 0:03:04]} Qc7 {[%emt 0:05:54]} 12. Qe2 {[%emt 0:06:09]} Rd8 {[%emt 0:12:13]} 13. Bg5 {[%emt 0:07:12]} h6 {[%emt 0:21:39]} 14. Bh4 {[%emt 0:05:55]} Bd7 {[%emt 0:03:45]} 15. dxc5 {[%emt 0:10:45]} Qxc5 {[%emt 0:01:36]} 16. Ne5 {[%emt 0:02:38]} Rac8 {[%emt 0:05:11]} 17. Rad1 {[%emt 0:03:54]} Nd5 {[%emt 0:05:20]} 18. Bxe7 {[%emt 0:14:45]} Qxe7 {[%emt 0:00:40]} 19. Qe4 {[%emt 0:02:41]} Nf6 {[%emt 0:08:00]} 20. Qxb7 {[%emt 0:10:13]} Rb8 {[%emt 0:01:35]} 21. Qxa7 {[%emt 0:00:19]} Rxb2 {[%emt 0:00:06]} 22. Nc6 {[%emt 0:02:00]} 1-0